Cogmind - Beta 11 @@@ ROGUE MODE // 2022.04.18 @ 17:43:02 Player: Momo Result: Destroyed by H-66 Slayer with Gauss Rifle Performance ------------- Evolutions (4) 2000 Regions Visited (11) 2200 Robots Destroyed (131) 655 Value Destroyed (4013) 4013 Prototype IDs (11) 220 Alien Tech Used (0) 0 Bonus (3339) 3339 TOTAL SCORE: 12427 Bonus ------- Triggered High Security 500 High Alert Combat Kills 2050 Follower Combat Kills 103 Entered Garrisons 200 Used RIF Installer 500 Friendly Fire -14 Cogmind --------- Core Integrity 0/850 Matter 67/300 Energy 300/300 System Corruption 9% Temperature Cool (2) Movement Hovering (60) Location -6/Factory Parts ------- > --- POWER (1) -------- Angular Momentum Engine > --- PROPULSION (4) --- Gravmag Array > --- UTILITY (6) ------ Improved Signal Interpreter Improved Hacking Suite System Shield Relay Coupler [NC] (12) > --- WEAPON (4) ------- Chainsword Chainsword > --- INVENTORY (5) ---- Long-range Terrain Scanner Shock Bomb Launcher Remote Datajack Chainsword Force Lance Peak State ------------ > --- POWER ------------ Deuterium Engine > --- PROPULSION ------- Medium Treads Improved Medium Treads Antigrav System Antigrav System > --- UTILITY ---------- Improved Cooling System Large Storage Unit Structural Scanner Advanced Targeting Computer Thermal Shield > --- WEAPON ----------- Gauss Rifle Gauss Rifle Improved Heavy Machine Gun Improved Heavy Machine Gun > --- INVENTORY -------- Antigrav System Energy Well Compact Matter Pod Improved Signal Interpreter Authchip [Weapon] Authchip [Weapon] Relay Coupler [NC] Relay Coupler [Swarmer] Beamcaster Gauss Rifle Shock Bomb Launcher Remote Datajack Signal Generator [Rating: 63] Favorites ----------- Power Nuclear Core Engine Light Ion Engine Power Core Nuclear Core Propulsion Advanced Treads Treads Advanced Treads Leg Carbon-fiber Leg Wheel Compact Wheel Hover Unit Antigrav System Flight Unit Flight Unit Utility Large Storage Unit Device Structural Scanner Storage Large Storage Unit Processor Advanced Targeting Computer Hackware Relay Coupler [NC] Protection Light Armor Plating Weapon Enhanced Autogun Energy Gun Advanced Beam Rifle Energy Cannon Advanced Beam Cannon Ballistic Gun Enhanced Autogun Ballistic Cannon Advanced Assault Cannon Launcher Grenade Launcher Special Weapon Remote Datajack Slashing Weapon Chainsword Build | -11 -10 -10 -10 -9 -8 -8 -8 -8 -6 -6 -6 ------- Run | Scr Mat Min Exi Min Mat Sto Gar Rec Fac Was Fac Slots Evolved 8 | . . . . . 4 . . . 4 . . Power . | . . . . . . . . . . . . Propulsion 2 | . . . . . 2 . . . . . . Utility 4 | . . . . . 2 . . . 2 . . Weapon 2 | . . . . . . . . . 2 . . Parts Attached 98 | 5 5 3 . 2 3 23 1 1 45 2 8 Power 7 | 1 1 1 . . . 2 . . 1 . 1 Engine 6 | 1 1 1 . . . 1 . . 1 . 1 Core 1 | . . . . . . 1 . . . . . Reactor . | . . . . . . . . . . . . Propulsion 22 | 2 . . . . 2 4 . . 13 . 1 Treads 9 | . . . . . . 4 . . 5 . . Leg 4 | . . . . . . . . . 4 . . Wheel 2 | 2 . . . . . . . . . . . Hover 4 | . . . . . . . . . 3 . 1 Flight 3 | . . . . . 2 . . . 1 . . Utility 23 | . 1 1 . . . 5 . 1 10 1 4 Device 10 | . . . . . . 4 . 1 3 . 2 Storage 4 | . 1 . . . . 1 . . 2 . . Processor 3 | . . . . . . . . . 3 . . Hackware 3 | . . . . . . . . . . 1 2 Protection 3 | . . 1 . . . . . . 2 . . Artifact . | . . . . . . . . . . . . Weapon 46 | 2 3 1 . 2 1 12 1 . 21 1 2 Energy Gun 19 | 1 1 . . . 1 9 . . 7 . . Energy Cannon 2 | . . . . . . 2 . . . . . Ballistic Gun 13 | 1 . . . . . 1 1 . 10 . . Ballistic Cannon 1 | . . . . . . . . . 1 . . Launcher 8 | . 2 1 . 2 . . . . 3 . . Special Weapon 1 | . . . . . . . . . . 1 . Impact Weapon . | . . . . . . . . . . . . Slashing Weapon 2 | . . . . . . . . . . . 2 Piercing Weapon . | . . . . . . . . . . . . Special Melee Weapon . | . . . . . . . . . . . . Unidentified Prototypes 9 | . . . . . 1 6 . . 2 . . Parts Lost 37 | . . 2 . . 5 . 1 . 27 1 1 Power 2 | . . . . . 1 . . . 1 . . Propulsion 13 | . . . . . 1 . 1 . 10 1 . Utility 7 | . . . . . 1 . . . 5 . 1 Weapon 15 | . . 2 . . 2 . . . 11 . . Highest Loss Streak 10 | . . 2 . . 5 . 1 . 10 1 1 To Critical Strikes . | . . . . . . . . . . . . Average Slot Usage (%) 83 | . 76 82 71 81 72 84 94 90 91 22 39 Engine 5 | . 14 14 14 14 3 . . . 3 . 4 Core 3 | . . . . . . 7 9 9 2 . . Treads 14 | . . . . . . 34 30 27 13 . . Leg 1 | . . . . . . . . . 5 . . Wheel 8 | . 28 28 28 28 18 1 . . . . . Device 13 | . . . . . . 15 27 27 18 . 7 Storage 8 | . 9 14 14 14 9 9 9 9 6 . . Processor 2 | . . . . . . . . . 6 6 6 Protection 3 | . . 8 14 14 9 . . . 3 . . Energy Gun 3 | . 9 . . . 3 16 . . 3 . . Ballistic Gun 11 | . 14 8 . . . . 17 18 18 . . Launcher 1 | . . 7 . 10 12 . . . . . . Naked Turns . | . . . . . . . . . . . . Heaviest Build 58 | 9 14 16 11 17 17 38 36 36 58 3 19 Greatest Support 98 | 32 32 32 32 32 32 88 88 66 98 4 20 Greatest Overweight (x) 17 | 1 . . . . . 3 . . 17 . . Average Overweight (x) . | . . . . . . . . . . . . Largest Inventory Capacity 15 | 5 8 8 8 8 8 15 15 15 15 5 5 Average Capacity 11 | 5 6 8 8 8 8 11 15 15 14 5 5 Most Carried 15 | 1 8 8 8 8 8 15 15 15 15 5 5 Average Carried 11 | . 6 7 8 7 5 9 14 14 14 4 4 Final Capacity 15 | 5 8 8 8 8 8 15 15 15 5 5 5 Final Carried 15 | 1 8 8 8 7 8 15 15 15 5 5 5 Class Distribution -------------------- 66% | Mutant 15% | Scavenger-Gunner 8% | Scavenger-Tank 3% | Tank Dominant Class ---------------- Mutant | -10/Materials Mutant | -10/Mines Mutant | -10/Exiles Mutant | -9/Mines Mutant | -8/Materials Mutant | -8/Storage Mutant | -8/Garrison Mutant | -8/Recycling Scavenger-Gunner | -6/Factory Mutant | -6/Waste Mutant | -6/Factory Resources | -11 -10 -10 -10 -9 -8 -8 -8 -8 -6 -6 -6 ----------- Run | Scr Mat Min Exi Min Mat Sto Gar Rec Fac Was Fac Matter Collected 3605 | 84 57 106 . 39 152 332 221 . 2522 . 92 Remotely 1301 | . . . . . . 269 221 . 811 . . Salvage Created 4965 | . 108 69 . . 36 860 280 . 3612 . . Parts 257 | . 19 10 . . 2 51 24 . 151 . . Haulers Intercepted 5 | . . . . . . 2 . . 3 . . Recyclers Shooed 13 | . 1 . . . . . . . 12 . . Parts Field Recycled . | . . . . . . . . . . . . Retrieved Matter . | . . . . . . . . . . . . Parts Self-Destructed . | . . . . . . . . . . . . Prevented . | . . . . . . . . . . . . Kills | -11 -10 -10 -10 -9 -8 -8 -8 -8 -6 -6 -6 ------- Run | Scr Mat Min Exi Min Mat Sto Gar Rec Fac Was Fac Combat Hostiles Destroyed 95 | . 6 7 . . 1 15 11 . 55 . . Guns 61 | . 3 1 . . . 10 11 . 36 . . Cannons 8 | . . . . . . . . . 8 . . AOE 24 | . 3 6 . . 1 4 . . 10 . . Classes Destroyed 13 | . 4 1 . . . 2 1 . 5 . . Worker 9 | . 1 . . . . 2 . . 6 . . Builder 9 | . 1 . . . . 2 . . 6 . . Hauler 5 | . . . . . . 2 . . 3 . . Recycler 8 | . . . . . . . . . 8 . . Mechanic 1 | . . . . . . . . . 1 . . Watcher 4 | . . . . . . 1 . . 3 . . Swarmer 40 | . 5 6 . . . 4 8 . 17 . . Grunt 34 | . 1 . . . . 8 2 . 23 . . Brawler 1 | . . . . . . . . . 1 . . Sentry 11 | . . 1 . . 1 3 . . 6 . . Hunter 4 | . . . . . . . 1 . 3 . . Programmer 4 | . . . . . . . . . 4 . . Behemoth 1 | . . . . . . . . . 1 . . Best Kill Streak 10 | . 5 3 . . 1 10 4 . 9 . . Combat Bots Only 9 | . 4 3 . . 1 9 4 . 7 . . Max Kills in Single Turn 4 | . 2 2 . . 1 2 2 . 4 . . Gunslinging 1 | . . . . . . . 1 . 1 . . Exploded 3 | . 1 2 . . 1 2 . . 3 . . Melee . | . . . . . . . . . . . . Uniques/NPCs Destroyed . | . . . . . . . . . . . . Combat | -11 -10 -10 -10 -9 -8 -8 -8 -8 -6 -6 -6 -------- Run | Scr Mat Min Exi Min Mat Sto Gar Rec Fac Was Fac Damage Taken 6239 | . 255 118 . . 516 521 449 . 3850 50 480 Core 1191 | . 63 16 . . 148 28 85 . 519 50 282 Absorbed by Shields . | . . . . . . . . . . . . Core Remaining (%) 73 | 100 . . . 68 . . . 52 . . . Volleys Fired 252 | . 17 8 . . 1 51 27 . 147 . 1 Largest 4 | . 2 1 . . 2 2 2 . 4 . 1 Hottest 226 | . 60 30 . . 60 136 50 . 226 . 5 Shots Fired 693 | . 29 8 . . 2 75 54 . 524 . 1 Gun 620 | . 21 3 . . . 75 54 . 467 . . Cannon 46 | . . . . . . . . . 46 . . Launcher 26 | . 8 5 . . 2 . . . 11 . . Special 1 | . . . . . . . . . . . 1 Kinetic 513 | . 12 3 . . . . 54 . 444 . . Thermal 106 | . . . . . . 37 . . 69 . . Explosive 26 | . 8 5 . . 2 . . . 11 . . Electromagnetic 47 | . 9 . . . . 38 . . . . . Robot Hit Streak 19 | . 2 5 . . 3 10 5 . 19 . 7 Robot Miss Streak 7 | . 3 1 . . . 3 4 . 7 . . Penetration Max 1 | . . . . . . . . . 1 . . Secondary Targets 8 | . . . . . . 1 3 . 4 . . Max Gunslinging Chain 1 | . . . . . . 1 1 . 1 . . Shots Hit Robots 432 | . 9 4 . . 2 50 32 . 334 . 1 Core Hits 273 | . 12 8 . . 2 40 14 . 196 . 1 Critical Kills 3 | . . . . . . . 1 . 2 . . Critical Parts Destroyed 3 | . . . . . . . 1 . 2 . . Critical Strikes 16 | . . . . . . 3 2 . 11 . . Burn 8 | . . . . . . 3 . . 5 . . Destroy 6 | . . . . . . . 2 . 4 . . Blast 2 | . . . . . . . . . 2 . . Melee Attacks 3 | . . . . . . . . . . . 3 Impact . | . . . . . . . . . . . . Slashing 3 | . . . . . . . . . . . 3 Piercing . | . . . . . . . . . . . . Sneak Attacks . | . . . . . . . . . . . . Combat Hostiles . | . . . . . . . . . . . . Follow-up Attacks . | . . . . . . . . . . . . Damage Inflicted 12187 | . 445 394 . . 31 1522 502 . 9278 . 15 Guns 8005 | . 108 40 . . . 1082 502 . 6273 . . Cannons 748 | . . . . . . . . . 748 . . Explosions 3419 | . 337 354 . . 31 440 . . 2257 . . Melee . | . . . . . . . . . . . . Ramming 15 | . . . . . . . . . . . 15 Kinetic 6947 | . 84 40 . . . . 502 . 6321 . . Thermal 1519 | . . . . . . 819 . . 700 . . Explosive 2979 | . 337 354 . . 31 . . . 2257 . . Electromagnetic 727 | . 24 . . . . 703 . . . . . Impact . | . . . . . . . . . . . . Slashing . | . . . . . . . . . . . . Piercing . | . . . . . . . . . . . . Highest Corruption 9 | . . . . . . . . . 2 8 9 Average Corruption 3 | . . . . . . . . . 1 6 8 Corruption Purged . | . . . . . . . . . . . . Corruption Blocked . | . . . . . . . . . . . . Effects 13 | . . . . . . . . . 5 2 6 Message Errors 4 | . . . . . . . . . 2 1 1 Matter Fused 3 | . . . . . . . . . 1 . 2 Heat Flow Errors 1 | . . . . . . . . . 1 . . Energy Discharges 1 | . . . . . . . . . 1 . . Parts Rejected 1 | . . . . . . . . . . . 1 Data Loss (minor) 2 | . . . . . . . . . . 1 1 Alerts 1 | . . . . . . . . . . . 1 Overload Shots . | . . . . . . . . . . . . Overflow Damage 61 | . 5 5 . . . . . . 51 . . Projectiles 26 | . . . . . . . . . 26 . . Explosions 35 | . 5 5 . . . . . . 25 . . Melee . | . . . . . . . . . . . . Knockbacks . | . . . . . . . . . . . . Impact . | . . . . . . . . . . . . Kinetic . | . . . . . . . . . . . . Secondary . | . . . . . . . . . . . . Self-Inflicted Damage 105 | . 6 24 . . . . . . 68 . 7 Shots 6 | . 1 1 . . . . . . 4 . . Rammed 2 | . . . . . . . . . . . 2 Targets Rammed 2 | . . . . . . . . . . . 2 Kicked . | . . . . . . . . . . . . Crushed . | . . . . . . . . . . . . Highest Temperature 470 | . 24 13 . . . 422 5 . 470 . 14 Average Temperature 112 | . 13 10 . . . 159 5 . 83 . 12 Received Heat Transfer 1386 | . 84 9 . . 27 207 45 . 879 . 135 Effects 8 | . . . . . . 8 . . . . . Shutdowns 2 | . . . . . . 2 . . . . . Energy Bleed 1 | . . . . . . 1 . . . . . Interference 1 | . . . . . . 1 . . . . . Short Circuit 1 | . . . . . . 1 . . . . . Damage (major) 3 | . . . . . . 3 . . . . . Siege Activations . | . . . . . . . . . . . . Robots Corrupted 1 | . . . . . . 1 . . . . . Combat Hostiles 1 | . . . . . . 1 . . . . . Parts Fried . | . . . . . . . . . . . . Impact Corruptions . | . . . . . . . . . . . . Robots Melted 1 | . . . . . . . . . 1 . . Combat Hostiles 1 | . . . . . . . . . 1 . . Parts Melted 5 | . . . . . . 2 . . 3 . . Heat Transferred 3176 | . . . . . . 1290 . . 1886 . . Parts Sabotaged 2 | . . . . . . . . . 2 . . Parts Stolen . | . . . . . . . . . . . . Parts Stripped . | . . . . . . . . . . . . Power Chain Reactions 2 | . . . . . . 2 . . . . . Missiles Intercepted . | . . . . . . . . . . . . Alert | -11 -10 -10 -10 -9 -8 -8 -8 -8 -6 -6 -6 ------- Run | Scr Mat Min Exi Min Mat Sto Gar Rec Fac Was Fac Peak Influence 1894 | . 321 426 . . 96 493 710 453 1894 1160 805 Initial 1100 | . . 124 . . . 21 320 319 1005 1100 805 Average 683 | . 169 223 . . 51 254 488 371 1325 1131 645 Maximum Alert Level 5 | . 1 2 . . . 2 3 2 5 4 3 Low Security (%) 18 | 100 46 53 . 100 100 31 . . . . . Level 1 22 | . 53 24 . . . 40 25 66 . . 6 Level 2 18 | . . 21 . . . 27 61 33 . . 52 Level 3 10 | . . . . . . . 13 . 18 . 40 Level 4 25 | . . . . . . . . . 66 100 . Level 5 2 | . . . . . . . . . 7 . . High Security 2 | . . . . . . . . . 6 . . Max Security . | . . . . . . . . . . . . Squads Dispatched 25 | . 3 . . 1 2 4 . . 12 . 3 Investigation 6 | . 2 . . . . 1 . . 2 . 1 Extermination 2 | . . . . . . . . . 2 . . Reinforcement 6 | . 1 . . . 2 . . . 2 . 1 Assault 10 | . . . . 1 . 2 . . 6 . 1 Garrison 1 | . . . . . . 1 . . . . . Intercept . | . . . . . . . . . . . . Searches Triggered 2 | . . . . . . . . . 2 . . Construction Impeded 1 | . . . . . . . . . 1 . . Haulers Reinforced 1 | . . . . . . . . . 1 . . Active Scanning Responses . | . . . . . . . . . . . . Cargo Convoy Interrupts . | . . . . . . . . . . . . Stealth | -11 -10 -10 -10 -9 -8 -8 -8 -8 -6 -6 -6 --------- Run | Scr Mat Min Exi Min Mat Sto Gar Rec Fac Was Fac Distress Signals 3 | . . . . . . 1 . . 2 . . Communications Jammed . | . . . . . . . . . . . . Distress Signals . | . . . . . . . . . . . . Times Spotted 199 | . 16 7 . . 6 31 11 27 81 6 14 Peak Tracking Total 12 | . 6 4 . . 3 12 4 8 12 6 10 Tactical Retreats 15 | . 2 1 . . 1 3 1 . 4 . 3 Traps | -11 -10 -10 -10 -9 -8 -8 -8 -8 -6 -6 -6 ------- Run | Scr Mat Min Exi Min Mat Sto Gar Rec Fac Was Fac Traps Triggered 6 | . 1 . . . . . . . 5 . . Indirectly . | . . . . . . . . . . . . Trap Hack Attempts . | . . . . . . . . . . . . Triggered . | . . . . . . . . . . . . Disarmed . | . . . . . . . . . . . . Reprogrammed . | . . . . . . . . . . . . Reused . | . . . . . . . . . . . . Traps Extracted . | . . . . . . . . . . . . Installed . | . . . . . . . . . . . . Triggered . | . . . . . . . . . . . . Machines | -11 -10 -10 -10 -9 -8 -8 -8 -8 -6 -6 -6 ---------- Run | Scr Mat Min Exi Min Mat Sto Gar Rec Fac Was Fac Machines Disabled 12 | . 3 3 . . . 4 . . 2 . . Max in Single Turn 3 | . 1 3 . . . 1 . . 1 . . Garrison Access 2 | . . . . . . . . . 2 . . Machines Sabotaged . | . . . . . . . . . . . . Garrisons Compromised . | . . . . . . . . . . . . Overloaded Fab Kills . | . . . . . . . . . . . . Hacking | -11 -10 -10 -10 -9 -8 -8 -8 -8 -6 -6 -6 --------- Run | Scr Mat Min Exi Min Mat Sto Gar Rec Fac Was Fac Machines Accessed 19 | . 2 . 1 . . 5 . 3 4 . 4 Terminals 13 | . 2 . . . . 4 . 3 1 . 3 Fabricators 1 | . . . . . . . . . . . 1 Repair Stations . | . . . . . . . . . . . . Recycling Units . | . . . . . . . . . . . . Scanalyzers 1 | . . . . . . . . . 1 . . Garrison Access 3 | . . . . . . 1 . . 2 . . Total Hacks 48 | . 6 . 1 . . 15 . 8 8 . 10 Successful 20 | . 1 . 1 . . 8 . 2 6 . 2 Failed 28 | . 5 . . . . 7 . 6 2 . 8 Catastrophic 3 | . 1 . . . . . . 1 . . 1 Database Lockouts . | . . . . . . . . . . . . Manual 5 | . 1 . . . . . . 1 1 . 2 Terminals 38 | . 6 . . . . 14 . 8 1 . 9 Fabricators 1 | . . . . . . . . . . . 1 Repair Stations . | . . . . . . . . . . . . Recycling Units . | . . . . . . . . . . . . Scanalyzers 4 | . . . . . . . . . 4 . . Garrison Access 4 | . . . . . . 1 . . 3 . . Terminal Hacks 14 | . 1 . 1 . . 7 . 2 1 . 2 Record 1 | . . . 1 . . . . . . . . Prototype ID Bank 1 | . . . . . . . . 1 . . . Open Door 1 | . . . . . . 1 . . . . . Branch Access Points 2 | . 1 . . . . 1 . . . . . Emergency Access Points 2 | . . . . . . 1 . 1 . . . Unreport Threat 2 | . . . . . . . . . . . 2 Locate Traps 2 | . . . . . . 2 . . . . . Dispatch Records 1 | . . . . . . 1 . . . . . Transport Status 1 | . . . . . . . . . 1 . . Zone Layout 1 | . . . . . . 1 . . . . . Fabricator Hacks . | . . . . . . . . . . . . Repair Station Hacks . | . . . . . . . . . . . . Recycling Unit Hacks . | . . . . . . . . . . . . Scanalyzer 2 | . . . . . . . . . 2 . . Insert Component 1 | . . . . . . . . . 1 . . Analyze 1 | . . . . . . . . . 1 . . Garrison Access Hacks 4 | . . . . . . 1 . . 3 . . Unlock Access 1 | . . . . . . 1 . . . . . Seal Access 2 | . . . . . . . . . 2 . . Coupler Status 1 | . . . . . . . . . 1 . . Unauthorized Hacks . | . . . . . . . . . . . . Terminals . | . . . . . . . . . . . . Fabricators . | . . . . . . . . . . . . Repair Stations . | . . . . . . . . . . . . Recycling Units . | . . . . . . . . . . . . Scanalyzers . | . . . . . . . . . . . . Garrison Access . | . . . . . . . . . . . . Data Cores Recovered . | . . . . . . . . . . . . Used . | . . . . . . . . . . . . Hacking Detections 17 | . 2 . . . . 4 . 3 4 . 4 Full Trace Events 4 | . 1 . . . . 1 . . 1 . 1 Feedback Events 1 | . . . . . . . . . . . 1 Corruption 1 | . . . . . . . . . . . 1 Feedback Blocked . | . . . . . . . . . . . . Robot Schematics Acquired . | . . . . . . . . . . . . Robots Built . | . . . . . . . . . . . . Authchips . | . . . . . . . . . . . . Time . | . . . . . . . . . . . . Total Robot Build Rating . | . . . . . . . . . . . . Part Schematics Acquired 1 | . . . . . . . . . 1 . . Parts Built . | . . . . . . . . . . . . Authchips . | . . . . . . . . . . . . Time . | . . . . . . . . . . . . Total Part Build Rating . | . . . . . . . . . . . . Parts Repaired . | . . . . . . . . . . . . Time . | . . . . . . . . . . . . Parts Recycled . | . . . . . . . . . . . . Recycled Matter . | . . . . . . . . . . . . Retrieved Matter . | . . . . . . . . . . . . Retrieved Components . | . . . . . . . . . . . . Parts Scanalyzed 1 | . . . . . . . . . 1 . . Part Schematics Acquired 1 | . . . . . . . . . 1 . . Parts Damaged . | . . . . . . . . . . . . Bothacking | -11 -10 -10 -10 -9 -8 -8 -8 -8 -6 -6 -6 ------------ Run | Scr Mat Min Exi Min Mat Sto Gar Rec Fac Was Fac Used RIF Installer 1 | . . . . . . . 1 . . . . Robots Hacked 1 | . . . . . . . . . . . 1 Non-combat 1 | . . . . . . . . . . . 1 Combat . | . . . . . . . . . . . . Robot Hacks Applied 1 | . . . . . . . . . . . 1 purge_threat 1 | . . . . . . . . . . . 1 Relay Couplers Released 2 | . . . . . . . . . 2 . . Machine Destruction 2 | . . . . . . . . . 2 . . Attached 1 | . . . . . . . . . . 1 . Fabnet Peak Effective % . | . . . . . . . . . . . . Robots Rewired . | . . . . . . . . . . . . Allies Hacked . | . . . . . . . . . . . . Hacks Repelled . | . . . . . . . . . . . . Allies | -11 -10 -10 -10 -9 -8 -8 -8 -8 -6 -6 -6 -------- Run | Scr Mat Min Exi Min Mat Sto Gar Rec Fac Was Fac Total Allies 3 | . . . . 1 . 2 . . . . . Largest Group 2 | . . . . 1 1 2 . . . . . Highest-Rated Group 62 | . . . . 31 31 62 . . . . . Highest-Rated Ally 31 | . . . . 31 31 31 . . . . . Total Orders . | . . . . . . . . . . . . Ally Attacks 28 | . . . . . 5 23 . . . . . Total Damage 464 | . . . . . 44 420 . . . . . Kills 3 | . . . . . 1 2 . . . . . Allies Corrupted . | . . . . . . . . . . . . Allies Melted . | . . . . . . . . . . . . Intel | -11 -10 -10 -10 -9 -8 -8 -8 -8 -6 -6 -6 ------- Run | Scr Mat Min Exi Min Mat Sto Gar Rec Fac Was Fac Robot Analysis Total . | . . . . . . . . . . . . Derelict Logs Recovered 1 | . . 1 . . . . . . . . . Drone Launches . | . . . . . . . . . . . . Drone Recoveries . | . . . . . . . . . . . . Exploration | -11 -10 -10 -10 -9 -8 -8 -8 -8 -6 -6 -6 ------------- Run | Scr Mat Min Exi Min Mat Sto Gar Rec Fac Was Fac Turns Passed 4856 | 36 373 490 406 76 80 630 473 430 1593 53 216 Spaces Moved 3372 | 31 309 464 407 48 65 307 282 292 721 130 316 Core 110 | 9 . . . . . 1 . . 2 14 84 Treads 1297 | . . . . . . 276 282 292 447 . . Legs 216 | . . . . . . . . . 216 . . Wheels 1345 | 22 309 464 407 48 65 30 . . . . . Hover 237 | . . . . . . . . . 5 . 232 Flight 167 | . . . . . . . . . 51 116 . Fastest Speed 35 | 50 100 100 100 100 100 100 145 145 35 35 50 Average Speed 114 | 90 100 100 100 100 100 140 145 145 144 36 57 Slowest Speed 900 | 100 100 100 100 100 100 200 145 145 900 50 60 Overloaded Moves . | . . . . . . . . . . . . Propulsion Burnouts . | . . . . . . . . . . . . Robots Hopped . | . . . . . . . . . . . . Cave-ins Triggered . | . . . . . . . . . . . . Exploration Rate (%) 49 | 3 54 98 82 12 10 39 73 93 28 91 12 Regions Visited 11 Branch Regions 5 Pre-discovered Areas 1 | . . 1 . . . . . . . . . Known Exits Taken 2 | . 1 . . . . 1 . . . . . Unknown Exits Taken 6 | 1 . 1 1 1 1 . . 1 . . . Scrap Searched 3 | . . 2 . 1 . . . . . . . Spaces Dug 7 | . 5 . . . . . . . . . 2 Terrain Destroyed 197 | . 34 32 . . 18 7 . . 104 . 2 Melee 2 | . . . . . . . . . . . 2 Projectile 11 | . . . . . . . . . 11 . . AOE 184 | . 34 32 . . 18 7 . . 93 . . Terrain Rammed . | . . . . . . . . . . . . Walls Destroyed . | . . . . . . . . . . . . Machines Disabled . | . . . . . . . . . . . . Actions | -11 -10 -10 -10 -9 -8 -8 -8 -8 -6 -6 -6 --------- Run | Scr Mat Min Exi Min Mat Sto Gar Rec Fac Was Fac Total 3948 | 36 344 483 406 76 77 429 314 301 1002 135 345 Wait 99 | . . 5 . 26 6 20 3 . 32 . 7 Move 3362 | 30 308 463 406 47 64 306 281 291 721 129 316 Hop . | . . . . . . . . . . . . Pick Up 64 | 1 9 2 . 1 3 11 1 4 24 3 5 Fast Attach 51 | 5 2 1 . . 1 16 . 1 20 . 5 Attach 28 | . 2 1 . 2 2 3 . . 13 2 3 Detach 6 | . 1 . . . . 3 . . 2 . . Swap 19 | . 1 1 . . . 4 1 . 12 . . Drop 56 | . 4 2 . . . 15 1 5 25 1 3 Fire 252 | . 17 8 . . 1 51 27 . 147 . 1 Melee 3 | . . . . . . . . . . . 3 Ram 2 | . . . . . . . . . . . 2 Kick . | . . . . . . . . . . . . Crush . | . . . . . . . . . . . . Escape Stasis 6 | . . . . . . . . . 6 . . Rewire . | . . . . . . . . . . . . Trap . | . . . . . . . . . . . . Miscellaneous . | . . . . . . . . . . . . Route ------- -11/Scrapyard -10/Materials (discovered 3 exits: [*Mat x2] / *Min) -10/Mines (discovered 2 exits: [*Mat] / *Exi) -10/Exiles -9/Mines -8/Materials -8/Storage (discovered 2 exits: Rec / Gar) -8/Garrison (discovered 3 exits: *Rec x3) -8/Recycling -6/Factory -6/Waste -6/Factory History --------- Turn | Location | Event 16 | -11/Scrapyard | Discovered new exit (range 13) 37 | -11/Scrapyard | Entered Materials 188 | -10/Materials | Discovered new exit (range 3) 277 | -10/Materials | Identified exit to Mines 343 | -10/Materials | Build established: Mutant 366 | -10/Materials | Discovered new exit (range 15) 410 | -10/Materials | Entered Mines 427 | -10/Mines | YI-UF0 nonchalantly dropped a Grenade Launcher on the ground 466 | -10/Mines | Met a Derelict bent on vengeance 580 | -10/Mines | Joined a pair of Derelicts in attacking an 0b10 outpost 701 | -10/Mines | Discovered new exit (range 6) 896 | -10/Mines | Deemed a non-threat by the Exiles lab entrance 896 | -10/Mines | Discovered new exit (range 5) 900 | -10/Mines | Entered Exiles 900 | -10/Exiles | Found Exiles lab abandoned 1294 | -10/Exiles | Discovered new exit (range 14) 1306 | -10/Exiles | Entered Mines 1335 | -9/Mines | Discovered new exit (range 12) 1336 | -9/Mines | Met a Derelict testing a Signal Generator 1358 | -9/Mines | Found Signal Generator 1382 | -9/Mines | Entered Materials 1382 | -8/Materials | Accompanied by 1 ally 1382 | -8/Materials | Evolved 4 slots: Propulsion x2, Utility x2 1415 | -8/Materials | Discovered new exit (range 14) 1462 | -8/Materials | Entered Storage 1477 | -8/Storage | Identified exit to Recycling 1493 | -8/Storage | Lost 5 parts (1p1n1u2w) 1761 | -8/Storage | Met a pair of Derelict thieves 1811 | -8/Storage | Garrison activated, responded to threat 1937 | -8/Storage | Destroyed 9 combat bots 2029 | -8/Storage | Identified exit to Garrison 2092 | -8/Storage | Entered Garrison 2176 | -8/Garrison | Triggered checkpoint 2229 | -8/Garrison | Discovered exit to Recycling (range 9) 2334 | -8/Garrison | Triggered checkpoint 2388 | -8/Garrison | Discovered exit to Recycling (range 8) 2474 | -8/Garrison | Triggered checkpoint 2538 | -8/Garrison | Discovered exit to Recycling (range 10) 2560 | -8/Garrison | Installed Relay Interface Framework 2565 | -8/Garrison | Entered Recycling 2571 | -8/Recycling | Spotter reported a threat 2583 | -8/Recycling | Spotter reported a threat 2624 | -8/Recycling | Spotter reported a threat 2670 | -8/Recycling | Spotter reported a threat 2670 | -8/Recycling | Spotter reported a threat 2684 | -8/Recycling | Spotter reported a threat 2684 | -8/Recycling | Spotter reported a threat 2688 | -8/Recycling | Spotter reported a threat 2699 | -8/Recycling | Spotter reported a threat 2708 | -8/Recycling | Spotter reported a threat 2737 | -8/Recycling | Spotter reported a threat 2757 | -8/Recycling | Spotter reported a threat 2783 | -8/Recycling | Spotter reported a threat 2790 | -8/Recycling | Spotter reported a threat 2824 | -8/Recycling | Spotter reported a threat 2824 | -8/Recycling | Spotter reported a threat 2843 | -8/Recycling | Spotter reported a threat 2864 | -8/Recycling | Spotter reported a threat 2879 | -8/Recycling | Spotter reported a threat 2888 | -8/Recycling | Spotter reported a threat 2889 | -8/Recycling | Spotter reported a threat 2895 | -8/Recycling | Spotter reported a threat 2896 | -8/Recycling | Spotter reported a threat 2905 | -8/Recycling | Spotter reported a threat 2915 | -8/Recycling | Spotter reported a threat 2917 | -8/Recycling | Spotter reported a threat 2932 | -8/Recycling | Spotter reported a threat 2941 | -8/Recycling | Spotter reported a threat 2942 | -8/Recycling | Spotter reported a threat 2949 | -8/Recycling | Spotter reported a threat 2957 | -8/Recycling | Spotter reported a threat 2961 | -8/Recycling | Spotter reported a threat 2970 | -8/Recycling | Spotter reported a threat 2975 | -8/Recycling | Discovered new exit (range 12) 2985 | -8/Recycling | Spotter reported a threat 2994 | -8/Recycling | Spotter reported a threat 2995 | -8/Recycling | Entered Factory 2995 | -6/Factory | Evolved 4 slots: Utility x2, Weapon x2 3286 | -6/Factory | Spotted B-75 Beast 3345 | -6/Factory | Search patrols dispatched 3543 | -6/Factory | Destroyed B-75 Beast 3570 | -6/Factory | Lost 7 parts (3n2u2w) 3695 | -6/Factory | Search patrols dispatched 3937 | -6/Factory | Destroyed 7 combat bots 3979 | -6/Factory | Lost 3 parts (3w) 4025 | -6/Factory | Build established: Scavenger-Tank 4376 | -6/Factory | Build established: Scavenger-Gunner 4395 | -6/Factory | First assault squad dispatched 4477 | -6/Factory | High security lockdown imminent 4555 | -6/Factory | Core integrity fell below 50% 4557 | -6/Factory | High security lockdown engaged 4566 | -6/Factory | Released all parts (4) 4588 | -6/Factory | Manually triggered Chute Trap 4588 | -6/Factory | Sucked down chute 4588 | -6/Factory | Entered Waste 4590 | -6/Waste | Lost 10 parts (3n3u4w) 4595 | -6/Waste | Spotted C-40 Crusher 4601 | -6/Waste | Spotted C-40 Crusher 4603 | -6/Waste | EMP discharged 4608 | -6/Waste | Spotted C-40 Crusher 4611 | -6/Waste | Spotted C-40 Crusher 4616 | -6/Waste | Spotted C-40 Crusher 4621 | -6/Waste | Spotted C-40 Crusher 4633 | -6/Waste | Crushed by Compactor (1 part destroyed) 4634 | -6/Waste | Discovered new exit (range 10) 4641 | -6/Waste | Identified exit to Factory 4641 | -6/Waste | Entered Factory 4834 | -6/Factory | Core integrity fell below 20% 4857 | -6/Factory | Destroyed by H-66 Slayer with Gauss Rifle Last Messages --------------- 04809_ Dropped Signal Generator. 04810_ Acquired Imp. Hacking Suite. 04817_ ALERT: Intercepting significant anomalous signal. Dispatching assault force. 04820_ System corrupted: IFF burst signal emitted. 04822_ Broken Adv. Recalibrator destroyed. 04824_ Acquired 92 matter. 04825_ Acquired Chainsword. 04826_ Dropped Remote Datajack. 04828_ Acquired Chainsword. 04832_ Acquired Remote Datajack. 04833_ Acquired Chainsword. 04836_ Critical hit (Burn: +37). 04838_ Slammed into G-50 Soldier. 04838_ Destabilizing: System interference. 04838_ Imp. Signal Interpreter temporarily disabled. 04839_ Critical hit (Burn: +37). 04840_ Penetrated by Slug. 04848_ Slug penetrates Wall. 04857_ Penetrated by Slug. Map ----- +----------------------------------------------------+ | "" #????????????????? | | ""T""" #????????????????? | | # """"" #????????????????? | | = # #???????????????? | | ##### /#################????????? | | ######+############## # ???????? | | ????# +& # # ???????? | | # """ # # ??????? | | ##### + """"" # / ! ??????? | | ????# # """"" + # ??????? | | ????# #/ # u # ??????? | | ????# # """ # # ??????? | | ????# # """"" # Y # ??????? | | ????+ # """"" ! # h # ??????? | | ????# #! # g"###############???????? | | ????# ############# #"########?????????????? | | ????# #???????????# # ! #?????????????? | | ????# #???????????# # T #?????????????? | | ????# ????????????# # #?????????????? | | ????# ????????????# # #?????????????? | | ????# ????????????# # #?????????????? | | ????? ????????????# # ! """ #?????????????? | | ????????????????????+ + """ #?????????????? | | ????????????????????# # """ #?????????????? | | ????????????????????# # #?????????????? | | ????????????????????# @##########?????????????? | | ##?????????????????# #?????????????????????? | | #?????????????????# #?????????????????????? | | #??????????????? #?????????????????????? | | #????????????? +?????????????????????? | | #??????????? """ """ #?????????????????????? | | #??????????## """ """ #?????????????????????? | | #??????????????""" """ #?????????????????????? | | ##??????????????? ? ##?????????????????????? | | ?????????????????"???"" ???????????????????????? | | ?????????????????????"" ???????????????????????? | | ??????????????????????" ???????????????????????? | | ?????????????????????? ???????????????????????? | | ??????????????????????" ???????????????????????? | | ??????????????????????" ???????????????????????? | | ??????????????????????? ???????????????????????? | | ?????????????????????????????????????????????????? | | ##############!??????????????????????????????????? | | ^ [[ ????????????????????????????????? | | [[ ????????????????????????????????? | | "" """ ????????????????????????????????? | | "" """ ?????????????????????????????????? | | "" """ ????????????????????????????????? | | ! ????????????????????????????????? | | ????????????????????????????????? | +----------------------------------------------------+ Best States ------------- Heat Dissipation 64 Energy Generation 18 Energy Capacity 590 Matter Stores 300 Matter Capacity 300 Sight Range 16 Terrain Scan Density 10 Armor Coverage 150 Resistance: KI 20 Resistance: TH 20 Evasion (%) 63 Targeting Accuracy 8 Target Analysis 5 Recoil Reduction 4 Offensive Hacking 12 Defensive Hacking 10 Relay Coupler Types 1 Relay Coupler Value 22 Authchip Count 2 Item Schematics ----------------- Imp. Signal Interpreter | -6/Factory | Scanalyzed Robot Schematics ------------------ None Fabricated ------------ Nothing Alien Tech Used ----------------- None Achievements -------------- Wheee! Challenges ------------ None Game ------ Seed DecoySalvageFlamer Manual? 0 Play Time 01:04:04 Cumulative 255.2 hours Start 2022.04.18 @ 13:34:37 End 2022.04.18 @ 17:43:02 Sessions 1 Manual Loads 0 Difficulty Rogue Special Mode None Game No. 127 Rogue 123 Adventurer 0 Explorer 4 Win Type - Total 15 Types 4/0/2/3/1/2/3/0/0 Lore% 75 Gallery% 80 Achievement% 73 Wizard Run 0 Options --------- ASCII 0 Keyboard 0 Movement Mouse Keybinds 0 Fullscreen 1 Font 18/SmallcapsGlow Map View 76x50 Tactical HUD 1 Map Filters NONE Filters NONE Steam 1 RUN: 30a1cac1-41b6-4b1e-8eb3-91ef67fc20f6